fUSD/lending_fUSD_20250124
["ID","MTS","AMOUNT","RATE_DAILY","PERIOD"]
[350189737,1737678658077,-500.0,0.00017807,2]
[350189738,1737678658086,-523.65103328,0.00017807,2]
[350189739,1737678658095,-825.08,0.00017807,2]
[350189740,1737678658105,-500.0,0.00017807,2]
[350189741,1737678658114,-1643.42,0.00017807,2]
[350189742,1737678658123,-500.0,0.00017807,2]
[350189743,1737678658133,-500.0,0.00017807,2]
[350189744,1737678658143,-500.0,0.00017807,2]
[350189745,1737678658153,-500.0,0.00017807,2]
[350189746,1737678658162,-500.0,0.00017807,2]
[350189747,1737678658172,-734.06,0.00017807,2]
[350189748,1737678658182,-500.0,0.00017807,2]
[350189749,1737678658192,-258.47689527,0.00017807,2]
[350189750,1737678658201,-500.0,0.00017807,2]
[350189751,1737678658211,-500.0,0.00017807,2]
[350189752,1737678658220,-500.0,0.00017807,2]
[350189753,1737678658230,-500.0,0.00017807,2]
[350189754,1737678658240,-495.91293402,0.00017807,2]
[350189755,1737678658249,-500.0,0.00017807,2]
[350189756,1737678658260,-500.0,0.00017807,2]
[350189757,1737678658269,-500.0,0.00017807,2]
[350189758,1737678658280,-338.05919521,0.00017807,2]
[350189759,1737678658292,-569.85,0.00017807,2]
[350189760,1737678658302,-500.0,0.00017807,2]
[350189761,1737678658314,-500.0,0.00017807,2]
[350189762,1737678658325,-691.42,0.00017807,2]
[350189763,1737678658334,-500.0,0.00017807,2]
[350189764,1737678658344,-500.0,0.00017807,2]
[350189765,1737678658354,-401.93124427,0.00017807,2]
[350189766,1737678658364,-500.0,0.00017807,2]
[350189767,1737678658374,-304.79801718,0.00017807,2]
[350189768,1737678658384,-500.0,0.00017808,2]
[350189769,1737678658393,-1643.8719968,0.00017851,2]
[350189770,1737678658403,-1000.0,0.0001792,2]
[350189771,1737678658412,-208.0,0.0001793,2]
[350189772,1737678658422,-2488.85028571,0.00017934,2]
[350189773,1737678658431,-152.0,0.00017937,10]
[350189774,1737678658441,-773.39,0.00017982,2]
[350189775,1737678658450,-438.64,0.00017982,2]
[350189776,1737678658460,-438.64,0.00017982,2]
[350189777,1737678658469,-773.39,0.00017982,2]
[350189778,1737678658479,-438.64,0.00017982,2]
[350189779,1737678658488,-773.39,0.00017982,2]
[350189780,1737678658497,-773.39,0.00017982,2]
[350189781,1737678658507,-773.39,0.00017982,2]
[350189782,1737678658515,-21016.05,0.00018,2]
[350189783,1737678658525,-1095.0,0.00018,2]
[350189784,1737678658535,-976.7,0.00018,2]
[350189785,1737678658544,-500.0,0.0001808,2]
[350189786,1737678658553,-268.555065,0.0001808,2]
[350189787,1737678658565,-808.02,0.0001808,2]
[350189788,1737678658574,-946.64,0.0001808,2]
[350189789,1737678658583,-740.01,0.0001808,2]
[350189790,1737678658592,-500.0,0.0001808,2]
[350189791,1737678658601,-500.0,0.0001808,2]
[350189792,1737678658610,-713.66,0.0001808,2]
[350189793,1737678658619,-1384.63,0.0001808,2]
[350189794,1737678658629,-735.44,0.0001808,2]
[350189795,1737678658638,-500.0,0.0001808,2]
[350189796,1737678658647,-500.0,0.0001808,2]
[350189797,1737678658657,-905.53,0.0001808,2]
[350189798,1737678658666,-613.84,0.0001808,2]
[350189799,1737678658675,-491.80657271,0.0001808,2]
[350189800,1737678658684,-500.0,0.0001808,2]
[350189801,1737678658694,-512.48,0.0001808,2]
[350189802,1737678658702,-583.73,0.0001808,2]
[350189803,1737678658712,-500.0,0.0001808,2]
[350189804,1737678658721,-763.59,0.0001808,2]
[350189805,1737678658732,-500.0,0.0001808,2]
[350189806,1737678658741,-500.0,0.0001808,2]
[350189807,1737678658750,-500.0,0.0001808,2]
[350189808,1737678658758,-763.79,0.0001808,2]
[350189809,1737678658768,-500.0,0.0001808,2]
[350189810,1737678658776,-500.0,0.0001808,2]
[350189811,1737678658786,-500.0,0.0001808,2]
[350189812,1737678658795,-500.0,0.0001808,2]
[350189813,1737678658805,-728.45,0.0001808,2]
[350189814,1737678658816,-895.99,0.0001808,2]
[350189815,1737678658825,-500.0,0.0001808,2]
[350189816,1737678658835,-608.36,0.0001808,2]
[350189817,1737678658844,-580.9,0.0001808,2]
[350189818,1737678658854,-386.77042395,0.0001808,2]
[350189819,1737678658862,-500.0,0.0001808,2]
[350189820,1737678658872,-500.0,0.0001808,2]
[350189821,1737678658881,-500.0,0.0001808,2]
[350189822,1737678658889,-1547.32,0.0001808,2]
[350189823,1737678658898,-575.52,0.0001808,2]
[350189824,1737678658907,-500.0,0.0001808,2]
[350189825,1737678658916,-594.77159155,0.0001808,2]
[350189826,1737678658926,-1262.66,0.0001808,2]
[350189827,1737678658935,-500.0,0.0001808,2]
[350189828,1737678658944,-438.08114164,0.0001808,2]
[350189829,1737678658953,-500.0,0.0001808,2]
[350189830,1737678658962,-500.0,0.0001808,2]
[350189831,1737678658971,-500.0,0.0001808,2]
[350189832,1737678658980,-500.0,0.0001808,2]
[350189833,1737678658989,-715.08,0.0001808,2]
[350189834,1737678658998,-543.82,0.0001808,2]
[350189835,1737678659007,-500.0,0.0001808,2]
[350189836,1737678659016,-500.0,0.0001808,2]
[350189837,1737678659027,-500.0,0.0001808,2]
[350189838,1737678659036,-500.0,0.0001808,2]
[350189839,1737678659045,-500.0,0.00018081,2]
[350189840,1737678659054,-500.0,0.00018081,2]
[350189841,1737678659063,-500.0,0.00018081,2]
[350189842,1737678659072,-500.0,0.00018081,2]
[350189843,1737678659081,-361.813877,0.00018081,2]
[350189844,1737678659090,-201.94,0.00018081,2]
[350189845,1737678659099,-273.70955424,0.00018081,2]
[350189846,1737678659108,-500.0,0.00018081,2]
[350189847,1737678659117,-500.0,0.00018081,2]
[350189848,1737678659126,-500.0,0.00018081,2]
[350189849,1737678659135,-598.0,0.00018081,2]
[350189850,1737678659144,-500.0,0.00018081,2]
[350189851,1737678659153,-500.0,0.00018081,2]
[350189852,1737678659162,-500.0,0.00018081,2]
[350189853,1737678659171,-500.0,0.00018081,2]
[350189854,1737678659181,-500.0,0.00018081,2]
[350189855,1737678659191,-500.0,0.00018081,2]
[350189856,1737678659200,-500.0,0.00018081,2]
[350189857,1737678659309,-500.0,0.00018081,2]
[350189858,1737678659330,-500.0,0.00018081,2]
[350189859,1737678659340,-500.0,0.00018081,2]
[350189860,1737678659350,-500.0,0.00018081,2]
[350189861,1737678659360,-825.08,0.00018081,2]
[350189862,1737678659371,-1643.42,0.00018081,2]
[350189863,1737678659380,-500.0,0.00018081,2]
[350189864,1737678659390,-500.0,0.00018081,2]
[350189865,1737678659399,-734.06,0.00018081,2]
[350189866,1737678659409,-500.0,0.00018081,2]
[350189867,1737678659419,-500.0,0.00018081,2]
[350189868,1737678659428,-500.0,0.00018081,2]
[350189869,1737678659438,-569.85,0.00018081,2]
[350189870,1737678659447,-500.0,0.00018081,2]
[350189871,1737678659456,-691.42,0.00018081,2]
[350189872,1737678659465,-500.0,0.00018081,2]
[350189873,1737678659474,-500.0,0.00018081,2]
[350189874,1737678659483,-500.0,0.00018082,2]
[350189875,1737678659492,-200.0,0.00018082,2]
[350189876,1737678659502,-1142.26,0.00018082,2]
[350189877,1737678659511,-188.96285907,0.0001809,2]
[350189878,1737678659520,-152.0,0.00018099,11]
[350189879,1737678659528,-630.0,0.000181,2]
[350189880,1737678659537,-401232.51680848,0.000181,2]
[350189881,1737678659546,-500.0,0.000181,2]
[350189882,1737678659555,-623.577183,0.000181,2]
[350189883,1737678659566,-623.577183,0.000181,2]
[350189884,1737678659575,-151.0,0.000181,2]
[350189885,1737678659584,-151.0,0.000181,2]
[350189886,1737678659593,-296.792726,0.000181,2]
[350189887,1737678659602,-151.0,0.000181,2]
[350189888,1737678659611,-151.0,0.000181,2]
[350189889,1737678659620,-151.0,0.000181,2]
[350189890,1737678659629,-151.0,0.000181,2]
[350189891,1737678659638,-151.0,0.000181,2]
[350189892,1737678659648,-1019.074592,0.000181,2]
[350189893,1737678659658,-1019.074592,0.000181,2]
[350189894,1737678659667,-151.0,0.000181,2]
[350189895,1737678659676,-187.92,0.000181,2]
[350189896,1737678659685,-187.92,0.000181,2]
[350189897,1737678659694,-151.0,0.000181,2]
[350189898,1737678659703,-186.859802,0.000181,2]
[350189899,1737678659713,-186.859802,0.000181,2]
[350189900,1737678659722,-151.0,0.000181,2]
[350189901,1737678659731,-197.032607,0.000181,2]
[350189902,1737678659740,-197.032607,0.000181,2]
[350189903,1737678659749,-2488.85028571,0.00018107,2]
[350189904,1737678659758,-1136.722,0.00018119,2]
[350189905,1737678659767,-186353.77043653,0.00018155,2]
[350189906,1737678659776,-1643.8719968,0.00018161,2]
[350189907,1737678659786,-1864.0,0.00018202,2]
[350189908,1737678659795,-1261.0,0.00018202,2]
[350189909,1737678659803,-908.0,0.00018202,2]
[350189910,1737678659814,-781.0,0.00018202,2]
[350189911,1737678659822,-2948.0,0.00018202,2]
[350189912,1737678659831,-538.0,0.00018202,2]
[350189913,1737678659840,-150.0,0.00018202,2]
[350189914,1737678659849,-3985.0,0.00018202,2]
[350189915,1737678659859,-300.0,0.00018202,2]
[350189916,1737678659868,-3903.0,0.00018202,2]
[350189917,1737678659877,-1270.0,0.00018202,2]
[350189918,1737678659886,-2019.0,0.00018202,2]
[350189919,1737678659896,-150.0,0.00018202,2]
[350189920,1737678659905,-1176.0,0.00018202,2]
[350189921,1737678659915,-152.0,0.00018261,12]
[350189922,1737678659924,-2488.85028571,0.00018279,2]
[350189923,1737678659933,-366.0,0.000183,2]
[350189924,1737678659943,-745.0,0.000183,2]
[350189925,1737678659952,-231.0,0.000183,2]
[350189926,1737678659961,-183.69,0.00018319,2]
[350189927,1737678659970,-208.0,0.0001835,2]
[350189928,1737678659979,-500.0,0.00018354,2]
[350189929,1737678659989,-268.555065,0.00018354,2]
[350189930,1737678659998,-808.02,0.00018354,2]
[350189931,1737678660006,-946.64,0.00018354,2]
[350189932,1737678660016,-740.01,0.00018354,2]
[350189933,1737678660026,-500.0,0.00018354,2]
[350189934,1737678660036,-500.0,0.00018354,2]
[350189935,1737678660046,-713.66,0.00018354,2]
[350189936,1737678660056,-1384.63,0.00018354,2]
[350189937,1737678660067,-735.44,0.00018354,2]
[350189938,1737678660077,-500.0,0.00018354,2]
[350189939,1737678660087,-500.0,0.00018354,2]
[350189940,1737678660097,-905.53,0.00018354,2]
[350189941,1737678660107,-613.84,0.00018354,2]
[350189942,1737678660117,-500.0,0.00018354,2]
[350189943,1737678660127,-512.48,0.00018354,2]
[350189944,1737678660137,-583.73,0.00018354,2]
[350189945,1737678660147,-500.0,0.00018354,2]
[350189946,1737678660156,-763.59,0.00018354,2]
[350189947,1737678660166,-500.0,0.00018354,2]
[350189948,1737678660177,-500.0,0.00018354,2]
[350189949,1737678660187,-500.0,0.00018354,2]
[350189950,1737678660196,-763.79,0.00018354,2]
[350189951,1737678660207,-500.0,0.00018354,2]
[350189952,1737678660217,-500.0,0.00018354,2]
[350189953,1737678660227,-500.0,0.00018354,2]
[350189954,1737678660236,-500.0,0.00018354,2]
[350189955,1737678660246,-728.45,0.00018354,2]
[350189956,1737678660256,-895.99,0.00018354,2]
[350189957,1737678660265,-500.0,0.00018354,2]
[350189958,1737678660275,-608.36,0.00018354,2]
[350189959,1737678660286,-580.9,0.00018354,2]
[350189960,1737678660296,-500.0,0.00018354,2]
[350189961,1737678660306,-500.0,0.00018354,2]
[350189962,1737678660317,-500.0,0.00018354,2]
[350189963,1737678660327,-1547.32,0.00018354,2]
[350189964,1737678660338,-575.52,0.00018354,2]
[350189965,1737678660347,-500.0,0.00018354,2]
[350189966,1737678660357,-1262.66,0.00018354,2]
[350189967,1737678660369,-500.0,0.00018354,2]
[350189968,1737678660379,-500.0,0.00018354,2]
[350189969,1737678660388,-500.0,0.00018354,2]
[350189970,1737678660398,-500.0,0.00018354,2]
[350189971,1737678660407,-715.08,0.00018354,2]
[350189972,1737678660416,-543.82,0.00018354,2]
[350189973,1737678660426,-500.0,0.00018354,2]
[350189974,1737678660435,-500.0,0.00018354,2]
[350189975,1737678660445,-500.0,0.00018354,2]
[350189976,1737678660455,-500.0,0.00018354,2]
[350189977,1737678660465,-500.0,0.00018355,2]
[350189978,1737678660474,-594.4,0.00018355,2]
[350189979,1737678660483,-251.2,0.00018355,2]
[350189980,1737678660492,-500.0,0.00018355,2]
[350189981,1737678660502,-159.03,0.00018355,2]
[350189982,1737678660510,-311.20731779,0.00018355,2]
[350189983,1737678660520,-500.0,0.00018355,2]
[350189984,1737678660529,-598.0,0.00018355,2]
[350189985,1737678660538,-500.0,0.00018355,2]
[350189986,1737678660547,-500.0,0.00018355,2]
[350189987,1737678660557,-500.0,0.00018355,2]
[350189988,1737678660570,-500.0,0.00018355,2]
[350189989,1737678660579,-500.0,0.00018355,2]
[350189990,1737678660589,-500.0,0.00018355,2]
[350189991,1737678660598,-500.0,0.00018355,2]
[350189992,1737678660608,-500.0,0.00018355,2]
[350189993,1737678660617,-500.0,0.00018355,2]
[350189994,1737678660626,-500.0,0.00018355,2]
[350189995,1737678660636,-500.0,0.00018355,2]
[350189996,1737678660645,-825.08,0.00018355,2]
[350189997,1737678660655,-1643.42,0.00018355,2]
[350189998,1737678660664,-37.13625261,0.00018355,2]
[350189999,1737678660824,-462.86374739,0.00018355,2]
[350190000,1737678660834,-734.06,0.00018355,2]
[350190001,1737678660843,-500.0,0.00018355,2]
[350190002,1737678660853,-500.0,0.00018355,2]
[350190003,1737678660862,-500.0,0.00018355,2]
[350190004,1737678660871,-569.85,0.00018355,2]
[350190005,1737678660881,-691.42,0.00018355,2]
[350190006,1737678660890,-500.0,0.00018356,2]
[350190007,1737678660898,-437.55,0.00018394,2]
[350190008,1737678660908,-441.05,0.00018394,2]
[350190009,1737678660917,-421.7797397,0.00018405,2]
[350190010,1737678660926,-150.0,0.00018415,2]
[350190011,1737678660935,-150.0,0.00018417,2]
[350190012,1737678660944,-152.0,0.00018423,13]
[350190013,1737678660953,-150.0,0.00018424,2]
[350190014,1737678660962,-150.0,0.00018425,2]
[350190015,1737678660971,-150.0,0.0001843,2]
[350190016,1737678660980,-150.0,0.00018433,2]
[350190017,1737678660989,-119.42651291,0.00018436,2]
[350190018,1737678661000,-30.57348709,0.00018436,2]
[350190019,1737678661009,-150.0,0.00018438,2]
[350190020,1737678661018,-150.0,0.00018443,2]
[350190021,1737678661026,-150.0,0.00018443,2]
[350190022,1737678661035,-150.0,0.00018443,2]
[350190023,1737678661044,-150.0,0.00018444,2]
[350190024,1737678661053,-150.0,0.00018445,2]
[350190025,1737678661063,-150.0,0.00018446,2]
[350190026,1737678661073,-150.0,0.00018446,2]
[350190027,1737678661082,-150.0,0.00018447,2]
[350190028,1737678661091,-150.0,0.00018449,2]
[350190029,1737678661100,-2005.47651291,0.00018452,2]
[350190030,1737678661111,-483.3737728,0.00018452,2]
[350190031,1737678661120,-150.0,0.00018456,2]
[350190032,1737678661129,-150.0,0.00018459,2]
[350190033,1737678661138,-150.0,0.00018466,2]
[350190034,1737678661147,-150.0,0.0001847,2]
[350190035,1737678661156,-1643.8719968,0.00018471,2]
[350190036,1737678661165,-150.0,0.00018471,2]
[350190037,1737678661174,-150.0,0.00018476,2]
[350190038,1737678661292,-150.0,0.00018478,2]
[350190039,1737678661302,-150.0,0.00018481,2]
[350190040,1737678661311,-150.0,0.00018484,2]
[350190041,1737678661323,-150.0,0.00018489,2]
[350190042,1737678661332,-150.0,0.00018491,2]
[350190043,1737678661342,-150.0,0.00018491,2]
[350190044,1737678661352,-150.0,0.00018493,2]
[350190045,1737678661363,-150.0,0.00018496,2]
[350190046,1737678661372,-150.0,0.00018497,2]
[350190047,1737678661381,-150.0,0.00018498,2]
[350190048,1737678661391,-150.0,0.000185,2]
[350190049,1737678661401,-150.0,0.000185,2]
[350190050,1737678661411,-45604.76223095,0.000185,2]
[350190051,1737678661421,-187.92,0.000185,2]
[350190052,1737678661431,-187.92,0.000185,2]
[350190053,1737678661440,-151.0,0.000185,2]
[350190054,1737678661450,-186.859802,0.000185,2]
[350190055,1737678661459,-186.859802,0.000185,2]
[350190056,1737678661468,-151.0,0.000185,2]
[350190057,1737678661478,-197.032607,0.000185,2]
[350190058,1737678661487,-197.032607,0.000185,2]
[350190059,1737678661496,-2504.49337742,0.000185,2]
[350190060,1737678661508,-495.50662258,0.000185,2]
[350190061,1737678661517,-150.0,0.00018502,2]
[350190062,1737678661526,-150.0,0.00018504,2]
[350190063,1737678661535,-500.0,0.00018507,2]
[350190064,1737678661544,-500.0,0.00018507,2]
[350190065,1737678661553,-500.0,0.00018507,2]
[350190066,1737678661561,-500.0,0.00018507,2]
[350190067,1737678661574,-500.0,0.00018507,2]
[350190068,1737678661583,-500.0,0.00018507,2]
[350190069,1737678661592,-500.0,0.00018507,2]
[350190070,1737678661601,-500.0,0.00018507,2]
[350190071,1737678661610,-500.0,0.00018507,2]
[350190072,1737678661619,-500.0,0.00018507,2]
[350190073,1737678661628,-500.0,0.00018507,2]
[350190074,1737678661637,-500.0,0.00018507,2]
[350190075,1737678661646,-500.0,0.00018507,2]
[350190076,1737678661655,-500.0,0.00018507,2]
[350190077,1737678661664,-500.0,0.00018507,2]
[350190078,1737678661673,-500.0,0.00018507,2]
[350190079,1737678661682,-500.0,0.00018507,2]
[350190080,1737678661692,-500.0,0.00018507,2]
[350190081,1737678661701,-500.0,0.00018507,2]
[350190082,1737678661710,-500.0,0.00018507,2]
[350190083,1737678661719,-500.0,0.00018507,2]
[350190084,1737678661728,-500.0,0.00018507,2]
[350190085,1737678661736,-500.0,0.00018507,2]
[350190086,1737678661746,-500.0,0.00018507,2]
[350190087,1737678661755,-500.0,0.00018507,2]
[350190088,1737678661763,-500.0,0.00018507,2]
[350190089,1737678661773,-500.0,0.00018507,2]
[350190090,1737678661781,-500.0,0.00018507,2]
[350190091,1737678661790,-500.0,0.00018507,2]
[350190092,1737678661799,-500.0,0.00018507,2]
[350190093,1737678661808,-500.0,0.00018507,2]
[350190094,1737678661821,-283.27718538,0.00018507,2]
[350190095,1737678661863,-216.72281462,0.00018507,2]
[350190096,1737678661872,-500.0,0.00018507,2]
[350190097,1737678661881,-471.86721357,0.00018507,2]
[350190098,1737678661892,-28.13278643,0.00018507,2]
[350190099,1737678661901,-500.0,0.00018507,2]
[350190100,1737678661910,-500.0,0.00018507,2]
[350190101,1737678661919,-500.0,0.00018507,2]
[350190102,1737678661928,-500.0,0.00018507,2]
[350190103,1737678661937,-500.0,0.00018507,2]
[350190104,1737678661946,-500.0,0.00018507,2]
[350190105,1737678661956,-82.07628969,0.00018507,2]
[350190106,1737678661976,-417.92371031,0.00018507,2]
[350190107,1737678661986,-500.0,0.00018507,2]
[350190108,1737678661996,-302.39232593,0.00018507,2]
[350190109,1737678662007,-197.60767407,0.00018507,2]
[350190110,1737678662016,-287.6196559,0.00018507,2]
[350190112,1737679613928,155.66,0.00016658,30]
[350190116,1737679831631,-550.0,0.00015,2]
[350190117,1737679831640,-498.51,0.00015328,2]
[350190118,1737679831649,-250.0,0.00016132,2]
[350190119,1737679831658,-250.0,0.00016191,2]
[350190120,1737679831667,-280.04,0.00016228,2]
[350190121,1737679831676,-300.0,0.00016709,2]
[350190122,1737679831688,-116.95326023,0.0001671,2]
[350190123,1737679831699,-357.12064801,0.0001671,2]
[350190124,1737679831710,-25.92609176,0.0001671,2]
[350190125,1737679831720,-500.0,0.0001671,2]
[350190126,1737679831730,-500.0,0.0001671,2]
[350190127,1737679831739,-500.0,0.0001671,2]
[350190128,1737679831749,-500.0,0.0001671,2]
[350190129,1737679831758,-500.0,0.0001671,2]
[350190130,1737679831768,-500.0,0.0001671,2]
[350190131,1737679831777,-500.0,0.0001671,2]
[350190132,1737679831786,-500.0,0.0001671,2]
[350190133,1737679831796,-500.0,0.0001671,2]
[350190134,1737679831805,-500.0,0.0001671,2]
[350190135,1737679831814,-500.0,0.0001671,2]
[350190136,1737679831826,-500.0,0.0001671,2]
[350190137,1737679831835,-500.0,0.0001671,2]
[350190138,1737679831844,-500.0,0.0001671,2]
[350190139,1737679831853,-500.0,0.0001671,2]
[350190140,1737679831862,-500.0,0.0001671,2]
[350190141,1737679831871,-500.0,0.0001671,2]
[350190142,1737679831880,-500.0,0.0001671,2]
[350190143,1737679831889,-500.0,0.0001671,2]
[350190144,1737679831898,-500.0,0.0001671,2]
[350190145,1737679831907,-500.0,0.0001671,2]
[350190146,1737679831916,-500.0,0.0001671,2]
[350190147,1737679831925,-500.0,0.0001671,2]
[350190148,1737679831935,-500.0,0.0001671,2]
[350190149,1737679831943,-500.0,0.0001671,2]
[350190150,1737679831952,-500.0,0.0001671,2]
[350190151,1737679831961,-500.0,0.0001671,2]
[350190152,1737679831970,-504.5290228,0.0001671,2]
[350190153,1737679831979,-509.98073866,0.0001671,2]
[350190154,1737679831988,-500.0,0.0001671,2]
[350190155,1737679831997,-500.0,0.0001671,2]
[350190156,1737679832006,-500.0,0.0001671,2]
[350190157,1737679832015,-507.13283503,0.0001671,2]
[350190158,1737679832024,-500.0,0.0001671,2]
[350190159,1737679832033,-500.0,0.0001671,2]
[350190160,1737679832042,-500.0,0.0001671,2]
[350190161,1737679832051,-500.0,0.0001671,2]
[350190162,1737679832060,-500.0,0.0001671,2]
[350190163,1737679832070,-500.0,0.0001671,2]
[350190164,1737679832079,-505.85722484,0.0001671,2]
[350190165,1737679832088,-500.0,0.0001671,2]
[350190166,1737679832098,-500.0,0.0001671,2]
[350190167,1737679832109,-500.0,0.0001671,2]
[350190168,1737679832294,-500.0,0.0001671,2]
[350190169,1737679832304,-564.29763418,0.0001671,2]
[350190170,1737679832314,-500.0,0.0001671,2]
[350190171,1737679832324,-500.0,0.0001671,2]
[350190172,1737679832333,-500.0,0.0001671,2]
[350190173,1737679832342,-513.78987992,0.0001671,2]
[350190174,1737679832351,-500.0,0.0001671,2]
[350190175,1737679832361,-500.0,0.0001671,2]
[350190176,1737679832371,-340.28778798,0.0001671,2]
[350190177,1737679832388,-159.71221202,0.0001671,2]
[350190178,1737679832397,-500.0,0.0001671,2]
[350190179,1737679832406,-649.57404888,0.0001671,2]
[350190180,1737679832415,-500.0,0.0001671,2]
[350190181,1737679832424,-506.03841315,0.0001671,2]
[350190182,1737679832433,-503.44502373,0.0001671,2]
[350190183,1737679832443,-500.0,0.0001671,2]
[350190184,1737679832452,-500.0,0.0001671,2]
[350190185,1737679832462,-503.33648893,0.0001671,2]
[350190186,1737679832472,-500.0,0.0001671,2]
[350190187,1737679832481,-500.0,0.0001671,2]
[350190188,1737679832490,-498.06120672,0.0001671,2]
[350190189,1737679832499,-500.0,0.0001671,2]
[350190190,1737679832508,-500.0,0.0001671,2]
[350190191,1737679832518,-500.0,0.0001671,2]
[350190192,1737679832528,-500.0,0.0001671,2]
[350190193,1737679832537,-500.0,0.0001671,2]
[350190194,1737679832546,-500.0,0.0001671,2]
[350190195,1737679832555,-500.0,0.0001671,2]
[350190196,1737679832564,-500.0,0.0001671,2]
[350190197,1737679832575,-500.0,0.0001671,2]
[350190198,1737679832583,-500.0,0.0001671,2]
[350190199,1737679832593,-552.5884894,0.0001671,2]
[350190200,1737679832602,-500.0,0.0001671,2]
[350190201,1737679832612,-500.0,0.0001671,2]
[350190202,1737679832621,-500.0,0.0001671,2]
[350190203,1737679832630,-500.0,0.0001671,2]
[350190204,1737679832639,-500.0,0.0001671,2]
[350190205,1737679832648,-500.0,0.0001671,2]
[350190206,1737679832657,-500.0,0.0001671,2]
[350190207,1737679832667,-500.0,0.0001671,2]
[350190208,1737679832676,-500.0,0.0001671,2]
[350190209,1737679832685,-500.0,0.0001671,2]
[350190210,1737679832699,-500.0,0.0001671,2]
[350190211,1737679832708,-500.0,0.0001671,2]
[350190212,1737679832717,-500.0,0.0001671,2]
[350190213,1737679832728,-500.0,0.0001671,2]
[350190214,1737679832738,-500.0,0.0001671,2]
[350190215,1737679832747,-500.0,0.0001671,2]
[350190216,1737679832756,-500.0,0.0001671,2]
[350190217,1737679832766,-500.0,0.0001671,2]
[350190218,1737679832775,-500.0,0.0001671,2]
[350190219,1737679832784,-500.0,0.0001671,2]
[350190220,1737679832794,-500.0,0.0001671,2]
[350190221,1737679832803,-504.67425675,0.0001671,2]
[350190222,1737679832812,-500.0,0.0001671,2]
[350190223,1737679832822,-375.95075059,0.0001671,2]
[350190224,1737679832831,-509.73659575,0.0001671,2]
[350190225,1737679832841,-500.0,0.0001671,2]
[350190226,1737679832850,-511.74960584,0.0001671,2]
[350190227,1737679832859,-503.90426231,0.0001671,2]
[350190228,1737679832868,-500.0,0.0001671,2]
[350190229,1737679832878,-500.0,0.0001671,2]
[350190230,1737679832887,-500.0,0.0001671,2]
[350190231,1737679832896,-500.0,0.0001671,2]
[350190232,1737679832905,-500.0,0.0001671,2]
[350190233,1737679832914,-500.0,0.0001671,2]
[350190234,1737679832923,-500.0,0.0001671,2]
[350190235,1737679832932,-500.0,0.0001671,2]
[350190236,1737679832942,-500.0,0.0001671,2]
[350190237,1737679832951,-500.0,0.0001671,2]
[350190238,1737679832960,-500.0,0.0001671,2]
[350190239,1737679832969,-500.0,0.0001671,7]
[350190240,1737679832979,-584.18100027,0.0001671,2]